bitfinex/quotes_ETHUSD_20250523
["timestamp","ask_amount","ask_price","bid_price","bid_amount"]
[1748014803888,3.88228899,2575.8,2575.7,8.7756]
[1748014804383,3.88220232,2575.9,2575.7,8.7756]
[1748014804583,0.7906,2576.3,2575.7,8.7756]
[1748014804584,3.88228899,2575.8,2575.7,8.7756]
[1748014805700,3.88228899,2575.8,2575.7,15.536]
[1748014805861,3.88228899,2575.8,2575.7,27.171]
[1748014807194,3.88243972,2575.7,2575.6,16.748]
[1748014807392,3.88243972,2575.7,2575.6,43.919]
[1748014808893,3.88243972,2575.7,2575.6,32.284]
[1748014810408,4.67173972,2575.7,2575.6,32.284]
[1748014813971,3.88243972,2575.7,2575.6,32.284]
[1748014816212,3.88289197,2575.4,2574.7,8.0]
[1748014816508,3.88379679,2574.8,2574.7,37.2221]
[1748014816667,3.88379679,2574.8,2574.7,52.7601]
[1748014816873,3.88379679,2574.8,2574.7,41.1241]
[1748014817074,3.88379679,2574.8,2574.7,51.93]
[1748014817915,3.88379679,2574.8,2574.7,32.294]
[1748014818103,3.88379679,2574.8,2574.7,43.93]
[1748014818442,3.88379679,2574.8,2574.7,32.294]
[1748014818631,3.88379679,2574.8,2574.7,16.756]
[1748014818786,3.88379679,2574.8,2574.7,32.294]
[1748014819692,4.66054238,2574.8,2574.7,32.294]
[1748014820714,5.42474238,2574.8,2574.7,32.295]
[1748014821304,3.88379679,2574.8,2574.7,32.295]
[1748014823115,3.88379679,2574.8,2574.7,16.756]
[1748014823507,3.88379679,2574.8,2574.7,32.296]
[1748014825087,3.88379679,2574.8,2574.7,16.756]
[1748014825279,3.88379679,2574.8,2574.7,32.278]
[1748014825483,4.73696238,2574.8,2574.7,32.278]
[1748014827315,3.88379679,2574.8,2574.7,32.278]
[1748014827523,3.88379679,2574.8,2574.7,32.279]
[1748014828923,0.7945,2575.4,2574.7,32.279]
[1748014829122,3.88379679,2574.8,2574.7,32.279]
[1748014829625,3.88379679,2574.8,2574.7,43.92]
[1748014829922,3.88318007,2575.3,2574.7,43.92]
[1748014830129,3.88379679,2574.8,2574.7,43.92]
[1748014831101,3.88367111,2574.9,2574.7,43.92]
[1748014831307,3.88348095,2575.1,2574.7,43.92]
[1748014831519,7.67260099,2575.6,2574.9,0.7617]
[1748014831703,3.88349514,2575.0,2574.9,1.3192824]
[1748014832104,4.6231,2575.7,2574.9,9.3192824]
[1748014832307,3.88274475,2575.5,2575.1,8.0]
[1748014832504,8.45267865,2576.1,2575.2,12.4486]
[1748014832707,3.79,2576.1,2575.4,0.8086]
[1748014832912,3.88198757,2576.0,2575.6,0.8086]
[1748014833100,3.88243332,2575.8,2575.7,28.4]
[1748014833295,3.88243332,2575.8,2575.7,43.924]
[1748014833616,3.88243332,2575.8,2575.7,32.285]
[1748014835401,3.88243332,2575.8,2575.7,16.761]
[1748014835638,3.88243332,2575.8,2575.7,32.283]
[1748014837054,3.88228899,2575.8,2575.7,32.283]
[1748014837547,4.5748,2576.4,2575.8,8.0]
[1748014837760,3.881816,2576.2,2575.9,0.79621677]
[1748014837909,3.88185342,2576.1,2576.0,11.637]
[1748014838109,3.88156969,2576.3,2576.0,11.637]
[1748014838317,3.88198757,2576.0,2575.9,0.7574]
[1748014838508,3.88198757,2576.0,2575.9,20.3944]
[1748014840309,3.79,2576.4,2575.9,20.3944]
[1748014840642,3.79,2577.2,2576.5,8.0]
[1748014840942,1.95529178,2577.3,2576.7,8.0]
[1748014840943,3.88033574,2577.1,2576.7,8.0]
[1748014841242,1.95529178,2577.3,2577.0,0.8284]
[1748014841406,1.95529178,2577.3,2577.1,27.156]
[1748014841608,3.88018004,2577.2,2577.1,27.156]
[1748014842036,3.88015057,2577.3,2577.1,27.156]
[1748014842214,3.88018004,2577.2,2577.1,27.156]
[1748014842646,3.8803306,2577.1,2577.0,0.8284]
[1748014842801,3.8803306,2577.1,2577.0,27.9834]
[1748014843642,3.88063176,2576.9,2576.8,17.5312]
[1748014843849,3.88063176,2576.9,2576.8,44.6862]
[1748014844745,3.88063176,2576.9,2576.8,43.911]
[1748014845145,0.805,2577.7,2576.8,43.911]
[1748014845447,3.88048637,2577.0,2576.8,43.911]
[1748014845847,0.805,2577.7,2576.8,43.911]
[1748014845848,3.8795779,2577.6,2576.9,8.0]
[1748014846055,3.88026432,2577.2,2577.0,0.7723]
[1748014846357,3.8803306,2577.1,2577.0,0.7723]
[1748014846559,3.88063176,2576.9,2576.8,24.756]
[1748014846860,3.88063176,2576.9,2576.8,43.902]
[1748014847436,3.88063176,2576.9,2576.8,16.756]
[1748014847665,3.88063176,2576.9,2576.8,43.902]
[1748014847975,5.04477807,2576.9,2576.8,16.756]
[1748014848134,5.04477807,2576.9,2576.8,32.27]
[1748014848323,5.80767807,2576.9,2576.8,32.27]
[1748014849979,3.88063176,2576.9,2576.8,32.27]
[1748014853462,3.88063176,2576.9,2576.8,16.756]
[1748014853690,3.88063176,2576.9,2576.8,32.269]
[1748014855696,3.88063176,2576.9,2576.8,16.756]
[1748014855897,3.88063176,2576.9,2576.8,32.249]
[1748014857923,3.88063176,2576.9,2576.8,16.756]
[1748014858096,3.88063176,2576.9,2576.8,43.88]
[1748014858731,3.88063176,2576.9,2576.8,16.756]
[1748014859025,3.88063176,2576.9,2576.8,43.879]
[1748014860744,3.8802019,2577.2,2576.9,8.8311]
[1748014860896,3.88044513,2577.1,2576.9,8.8311]
[1748014861101,3.88048117,2577.0,2576.9,8.8311]
[1748014862027,3.88063176,2576.9,2576.8,16.756]
[1748014862226,4.65423176,2576.9,2576.8,32.247]
[1748014862448,9.68573643,2576.9,2576.8,32.247]
[1748014863556,8.44423176,2576.9,2576.8,32.247]
[1748014864442,8.44423176,2576.9,2576.8,16.756]
[1748014864606,8.44423176,2576.9,2576.8,32.247]
[1748014866906,8.44423176,2576.9,2576.8,32.248]
[1748014867106,8.80528967,2576.9,2576.8,32.248]
[1748014867306,10.46190013,2576.9,2576.8,32.248]
[1748014867508,3.88213828,2575.9,2575.8,0.7763]
[1748014867860,7.67159576,2576.3,2575.9,8.0]
[1748014868147,3.88198757,2576.0,2575.9,8.0]
[1748014868447,3.88190007,2576.1,2575.9,8.0]
[1748014868953,3.88198757,2576.0,2575.9,8.0]
[1748014870355,3.8819193,2576.1,2575.9,8.0]
[1748014870551,3.79,2576.3,2575.9,8.0]
[1748014870753,3.79,2576.3,2575.8,17.5253]
[1748014870943,3.88213828,2575.9,2575.8,24.749]
[1748014871126,3.88213828,2575.9,2575.8,43.873]
[1748014871869,3.88176163,2576.2,2575.8,43.873]
[1748014872055,3.88192072,2576.1,2576.0,0.8294]
[1748014873152,3.88213828,2575.9,2575.8,52.6619]
[1748014874068,3.88213828,2575.9,2575.8,52.6639]
[1748014874469,3.88213828,2575.9,2575.8,33.0319]
[1748014874676,3.88213828,2575.9,2575.8,43.875]
[1748014874971,3.88213828,2575.9,2575.8,32.243]
[1748014875190,5.46495366,2575.9,2575.8,16.749]
[1748014875344,4.68868899,2575.8,2575.7,15.494]
[1748014875929,3.88319353,2575.2,2575.1,0.46214853]
[1748014876260,4.66399353,2575.2,2575.1,15.95614853]
[1748014876625,3.88334433,2575.1,2575.0,16.751]
[1748014876831,5.12638454,2575.1,2575.0,32.245]
[1748014877366,8.91638454,2575.1,2575.0,16.751]
[1748014877566,20.54838454,2575.1,2575.0,16.751]
[1748014879670,8.91638454,2575.1,2575.0,16.751]
[1748014879974,20.55038454,2575.1,2575.0,16.751]
[1748014880170,7.67334433,2575.1,2575.0,16.751]
[1748014881080,7.67334433,2575.1,2575.0,32.25]
[1748014881673,7.67334433,2575.1,2575.0,16.751]
[1748014881856,7.67334433,2575.1,2575.0,32.25]
[1748014882682,8.50094433,2575.1,2575.0,32.25]
[1748014882838,11.29106454,2575.1,2575.0,32.25]
[1748014883297,3.88470204,2574.2,2574.1,0.8183]
[1748014883627,3.88470204,2574.2,2574.1,32.259]
[1748014886363,3.88470204,2574.2,2574.1,33.0124]
[1748014886584,3.79,2575.1,2574.2,0.7534]
[1748014886738,3.88369134,2574.9,2574.5,8.0]
[1748014886935,4.5729,2575.3,2574.7,0.7534]
[1748014886936,3.79,2575.3,2574.7,0.7534]
[1748014887239,14.1529022,2575.4,2574.9,4.66721082]
[1748014887240,3.88297437,2575.4,2574.9,4.66721082]
[1748014887441,3.88298097,2575.4,2575.0,11.639]
[1748014887638,3.88298097,2575.4,2575.1,32.248]
[1748014888065,3.88294798,2575.4,2575.1,32.248]
[1748014888245,3.88294798,2575.4,2575.2,0.7836]
[1748014888581,3.88297506,2575.4,2575.2,0.7836]
[1748014888979,3.88256403,2575.7,2575.2,0.7836]
[1748014889302,3.88282697,2575.5,2575.2,0.7836]
[1748014889606,3.88304275,2575.3,2575.2,0.7836]
[1748014889776,3.88304275,2575.3,2575.1,16.761]
[1748014889777,3.88319353,2575.2,2575.1,16.761]
[1748014889961,3.88319353,2575.2,2575.1,43.886]
[1748014890160,3.88319353,2575.2,2575.1,32.247]
[1748014890399,3.88319353,2575.2,2575.1,16.761]
[1748014890598,3.88319353,2575.2,2575.1,32.247]
[1748014891779,3.88319353,2575.2,2575.1,16.761]
[1748014891979,3.88319353,2575.2,2575.1,32.247]
[1748014892717,4.65981716,2575.2,2575.1,32.247]
[1748014893068,5.42521716,2575.2,2575.1,32.247]
[1748014894370,5.42521716,2575.2,2575.1,16.761]
[1748014894571,5.42521716,2575.2,2574.7,0.55762884]
[1748014894572,3.88379679,2574.8,2574.7,0.55762884]
[1748014894795,20.66809679,2574.8,2574.7,0.55762884]
[1748014894994,24.15417205,2574.8,2574.7,0.55762884]
[1748014895199,32.15417205,2574.8,2574.7,0.55762884]
[1748014896400,32.51272373,2574.8,2574.7,0.55762884]
[1748014896716,34.84072373,2574.8,2574.7,0.55762884]
[1748014897214,34.84072373,2574.8,2574.3,16.76]
[1748014897215,3.88440024,2574.4,2574.3,16.76]
[1748014897375,25.65025011,2574.4,2574.3,16.76]
[1748014897913,0.8197,2574.2,2573.4,16.76]
[1748014898222,3.8860607,2573.3,2573.2,16.76]
[1748014898516,3.8860607,2573.3,2573.2,32.248]
[1748014899711,6.55843186,2573.3,2573.2,32.248]
[1748014899927,8.07341443,2573.3,2573.2,32.248]
[1748014900723,8.07341443,2573.3,2573.2,16.76]
[1748014900895,8.07341443,2573.3,2573.2,32.252]
[1748014901095,6.55843186,2573.3,2573.2,32.252]
[1748014901623,3.8860607,2573.3,2573.2,32.252]
[1748014901919,3.8860607,2573.3,2573.2,33.0098]
[1748014903214,3.8860607,2573.3,2573.2,44.6528]
[1748014903753,15.13067116,2573.9,2573.2,44.6528]
[1748014903754,6.5575819,2573.9,2573.2,44.6528]
[1748014903949,3.32812935,2573.9,2573.2,44.6528]
[1748014904158,3.88563599,2573.6,2573.2,44.6528]
[1748014904464,3.88574853,2573.6,2573.2,44.6528]
[1748014904766,3.88569045,2573.6,2573.3,8.0]
[1748014904971,0.8062,2574.1,2573.3,8.0]
[1748014904972,3.88539421,2573.8,2573.4,0.7871]
[1748014905652,3.88545673,2573.7,2573.4,0.7871]
[1748014905876,2.37184987,2574.4,2573.4,0.7871]
[1748014906075,3.88575869,2573.5,2573.4,0.7871]
[1748014906366,3.88575869,2573.5,2573.4,8.7871]
[1748014906549,3.88575869,2573.5,2573.4,27.9241]
[1748014907629,3.88575869,2573.5,2573.4,27.137]
[1748014908719,3.8860607,2573.3,2573.2,17.5589]
[1748014908925,3.8860607,2573.3,2573.2,44.6959]
[1748014910941,4.40101115,2573.3,2573.2,32.253]
[1748014913060,7.07338231,2573.3,2573.2,32.255]
[1748014914660,4.40101115,2573.3,2573.2,32.255]
[1748014915673,3.8860607,2573.3,2573.2,32.255]
[1748014917381,3.8860607,2573.3,2573.2,32.246]
[1748014918497,4.6395607,2573.3,2573.2,32.246]
[1748014919158,4.5395607,2573.3,2573.2,32.246]
[1748014919483,4.5395607,2573.3,2573.2,32.247]
[1748014919646,6.77950827,2573.3,2573.2,32.247]
[1748014919996,9.45187943,2573.3,2573.2,32.247]
[1748014920804,8.69837943,2573.3,2573.2,32.247]
[1748014920949,3.7860607,2573.3,2573.2,32.247]
[1748014921687,3.7860607,2573.3,2573.2,16.76]
[1748014921999,3.7860607,2573.3,2573.2,32.247]
[1748014923596,3.7860607,2573.3,2573.2,16.76]
[1748014923892,4.82049539,2573.3,2573.2,32.247]
[1748014927097,4.82049539,2573.3,2573.2,16.76]
[1748014927262,3.7860607,2573.3,2573.2,32.247]
[1748014927464,3.7860607,2573.3,2573.2,33.0054]
[1748014927802,3.7860607,2573.3,2573.2,32.247]
[1748014928221,2.328,2575.5,2574.8,3.88379679]
[1748014928381,3.12846685,2576.1,2574.9,0.7584]
[1748014928579,7.01040978,2576.1,2575.6,0.7584]
[1748014928835,0.36182139,2576.0,2575.6,38.50375025]
[1748014929097,2.54187931,2575.7,2575.6,38.87500064]
[1748014929297,2.54187931,2575.7,2575.6,36.26465039]
[1748014929459,2.54187931,2575.7,2575.6,1.12965039]
[1748014929667,6.67850696,2575.7,2575.6,0.37125039]
[1748014929983,9.48020812,2575.7,2575.6,27.50625039]
[1748014930293,3.88304275,2575.3,2575.2,0.8199]
[1748014930497,3.88304275,2575.3,2575.2,27.9549]
[1748014931388,3.88304275,2575.3,2575.2,0.8199]
[1748014931583,3.88349514,2575.0,2574.9,8.7686]
[1748014931784,3.88349514,2575.0,2574.9,35.8966]
[1748014931985,3.88337055,2575.1,2574.9,35.8966]
[1748014932176,3.88349514,2575.0,2574.9,8.7686]
[1748014932378,0.25418793,2575.7,2574.9,8.7686]
[1748014932692,3.88334433,2575.1,2575.0,35.128]
[1748014932887,3.88320659,2575.2,2575.0,35.128]
[1748014932888,3.88323094,2575.2,2575.1,8.0]
[1748014933077,2.54187931,2575.8,2575.1,27.128]
[1748014933275,3.88288716,2575.5,2575.1,27.128]
[1748014933487,3.88261471,2575.6,2575.3,0.8091]
[1748014933828,3.88277186,2575.5,2575.3,0.8091]
[1748014933966,3.88243972,2575.7,2575.3,0.8091]
[1748014934171,3.88286422,2575.5,2575.4,27.124]
[1748014934396,3.88286422,2575.5,2575.3,0.8091]
[1748014934397,3.88289197,2575.4,2575.3,0.8091]
[1748014934766,5.21532565,2576.4,2575.3,27.9311]
[1748014935104,3.88217239,2575.9,2575.4,3.9216863]
[1748014935273,3.88274121,2575.5,2575.3,0.8091]
[1748014935477,3.88289197,2575.4,2575.3,0.8091]
[1748014935674,3.88289197,2575.4,2575.3,35.9311]
[1748014935900,3.88281382,2575.5,2575.4,8.0]
[1748014936300,3.88221438,2575.9,2575.4,8.0]
[1748014936474,3.8823121,2575.8,2575.4,8.0]
[1748014936693,3.88272107,2575.6,2575.4,8.0]
[1748014937010,3.88274121,2575.5,2575.3,0.8091]
[1748014937197,3.88289197,2575.4,2575.3,0.8091]
[1748014937410,3.88289197,2575.4,2575.3,35.9291]
[1748014937924,3.88289197,2575.4,2575.3,35.9271]
[1748014938101,3.88282144,2575.5,2575.4,8.0]
[1748014939299,3.88289197,2575.4,2575.3,0.8091]
[1748014939523,3.88289197,2575.4,2575.3,35.9271]
[1748014940181,3.88289197,2575.4,2575.3,8.8091]
[1748014940386,3.88289197,2575.4,2575.3,35.9251]
[1748014940582,3.88274121,2575.5,2575.4,8.0]
[1748014942115,3.88289197,2575.4,2575.3,0.8091]
[1748014942316,3.88289197,2575.4,2575.3,35.115]
[1748014942522,3.88334433,2575.1,2575.0,0.786]
[1748014943116,3.88334433,2575.1,2575.0,27.9]
[1748014943836,3.88334433,2575.1,2575.0,27.899]
[1748014944017,3.88334433,2575.1,2574.9,8.55753778]
[1748014944221,3.88349514,2575.0,2574.9,8.55753778]
[1748014944397,3.88349514,2575.0,2574.9,35.67053778]
[1748014944717,3.88349514,2575.0,2574.9,27.67053778]
[1748014945098,3.88349514,2575.0,2574.9,0.55753778]
[1748014945401,3.88349514,2575.0,2574.9,27.67053778]
[1748014945721,3.88349514,2575.0,2574.9,28.95453778]
[1748014945910,3.88349514,2575.0,2574.9,44.42953778]
[1748014947933,3.88349514,2575.0,2574.9,17.31653778]
[1748014948105,3.88349514,2575.0,2574.9,44.78753778]
[1748014950116,5.12414097,2575.0,2574.9,33.15053778]
[1748014950297,5.12414097,2575.0,2574.9,17.31653778]
[1748014950826,5.12414097,2575.0,2574.9,33.15053778]
[1748014951217,3.88349514,2575.0,2574.9,33.15053778]
[1748014951619,3.88349514,2575.0,2574.9,33.98333778]
[1748014952017,3.88349514,2575.0,2574.9,41.98333778]
[1748014953052,3.88344004,2575.1,2574.9,41.98333778]
[1748014953349,3.88271357,2575.6,2574.9,41.98333778]
[1748014953524,3.88319353,2575.2,2575.1,8.0]
[1748014953703,3.88295948,2575.4,2575.1,8.0]
[1748014954016,3.88299643,2575.4,2575.0,8.8323]
[1748014954509,3.88304275,2575.3,2575.1,27.473]
[1748014955045,3.88287323,2575.5,2575.3,8.0]
[1748014955363,3.88289197,2575.4,2575.3,8.0]
[1748014956402,3.88280704,2575.5,2575.3,8.0]
[1748014956753,3.43227116,2576.3,2575.3,8.0]
[1748014957066,3.43227116,2576.3,2575.3,0.7636]
[1748014957067,3.88266299,2575.6,2575.3,0.7636]
[1748014957220,3.88266299,2575.6,2575.4,0.87636]
[1748014957406,3.88266299,2575.6,2575.5,27.471]
[1748014957743,3.88266299,2575.6,2575.5,27.84104086]
[1748014957957,3.88248173,2575.7,2575.6,8.0]
[1748014958257,3.88248173,2575.7,2575.6,9.66813705]
[1748014959054,3.88248173,2575.7,2575.6,37.13713705]
[1748014959560,3.88228899,2575.8,2575.7,8.8014]
[1748014960101,3.88228899,2575.8,2575.7,0.8014]
[1748014960431,3.88228899,2575.8,2575.7,36.2704]
[1748014960942,3.88228899,2575.8,2575.7,36.64044086]
[1748014961143,3.88228899,2575.8,2575.7,8.37004086]
[1748014961320,3.88228899,2575.8,2575.7,27.83804086]
[1748014962343,3.88228899,2575.8,2575.7,27.468]
[1748014963240,3.88274121,2575.5,2575.4,0.7526]
[1748014963436,3.88274121,2575.5,2575.4,8.7526]
[1748014963639,3.88274121,2575.5,2575.4,36.2196]
[1748014964200,3.88274121,2575.5,2575.4,8.7526]
[1748014964440,3.88274121,2575.5,2575.4,36.2196]
[1748014964628,3.88274121,2575.5,2575.4,36.59032447]
[1748014966540,3.88259331,2575.6,2575.4,36.59032447]
[1748014966755,3.88271144,2575.6,2575.4,36.59032447]
[1748014966953,3.88274121,2575.5,2575.4,36.59032447]
[1748014969135,3.88264886,2575.6,2575.5,8.0]
[1748014969310,3.88233694,2575.8,2575.5,8.0]
[1748014969511,0.7599,2576.3,2575.5,8.0]
[1748014969734,3.88256921,2575.7,2575.5,8.0]
[1748014969941,3.88259046,2575.6,2575.5,8.0]
[1748014970136,3.88252882,2575.7,2575.5,8.0]
[1748014970342,3.88207933,2576.0,2575.5,8.0]
[1748014970645,3.88228899,2575.8,2575.7,0.7597]
[1748014971247,3.88243972,2575.7,2575.6,0.37072447]
[1748014971446,3.88243972,2575.7,2575.6,35.83672447]
[1748014973141,3.88243972,2575.7,2575.6,8.37072447]
[1748014973337,3.88243972,2575.7,2575.6,35.83572447]
[1748014973515,3.88205796,2576.0,2575.7,8.0]
[1748014973722,3.88205102,2576.0,2575.8,0.8183]
[1748014973943,3.88197961,2576.1,2576.0,8.0]
[1748014975438,3.88197961,2576.1,2576.0,35.465]
[1748014976254,3.88197961,2576.1,2576.0,35.464]
[1748014977263,3.88063176,2576.9,2576.1,0.825]
[1748014977564,0.8161,2577.0,2576.1,0.825]
[1748014977722,3.8816862,2576.2,2576.1,0.825]
[1748014977923,3.88163546,2576.3,2576.1,0.825]
[1748014978145,3.8816862,2576.2,2576.1,0.825]
[1748014978734,3.8816862,2576.2,2576.1,36.017]
[1748014978994,3.8816862,2576.2,2576.1,36.016]
[1748014979767,3.8816862,2576.2,2576.1,36.015]
[1748014980340,3.88160961,2576.3,2576.2,8.0]
[1748014981066,3.88160961,2576.3,2576.2,35.19]
[1748014983332,3.88160961,2576.3,2576.2,35.189]
[1748014983532,3.88160961,2576.3,2576.2,35.188]
[1748014985480,3.88160961,2576.3,2576.2,8.0]
[1748014985688,3.88160961,2576.3,2576.2,35.187]
[1748014986237,3.88160961,2576.3,2576.2,27.187]
[1748014986550,3.88198757,2576.0,2575.9,17.5276]
[1748014986754,3.88198757,2576.0,2575.9,46.46736]
[1748014986954,3.88198757,2576.0,2575.9,19.28036]
[1748014987158,3.88198757,2576.0,2575.9,46.46736]
[1748014987476,3.88198757,2576.0,2575.9,18.50776]
[1748014987645,3.88198757,2576.0,2575.9,16.755]
[1748014987840,3.88198757,2576.0,2575.9,43.942]
[1748014988744,3.88198757,2576.0,2575.9,43.941]
[1748014989770,3.88198757,2576.0,2575.9,32.309]
[1748014990172,3.88198757,2576.0,2575.9,43.941]
[1748014990557,3.88198757,2576.0,2575.9,32.309]
[1748014990771,4.73660323,2576.0,2575.9,32.309]
[1748014991076,4.73660323,2576.0,2575.9,16.755]
[1748014991274,4.73660323,2576.0,2575.9,32.31]
[1748014991451,3.88198757,2576.0,2575.9,32.31]
[1748014992550,3.88198757,2576.0,2575.9,16.755]
[1748014992745,3.88198757,2576.0,2575.9,43.943]
[1748014992981,3.88198757,2576.0,2575.9,32.31]
[1748014993185,4.66958757,2576.0,2575.9,32.31]
[1748014993373,13.52473264,2576.0,2575.9,32.31]
[1748014994501,13.52473264,2576.0,2575.9,16.755]
[1748014994711,13.52473264,2576.0,2575.0,0.7598]
[1748014994712,3.88334433,2575.1,2575.0,0.7598]
[1748014994882,3.88334433,2575.1,2575.0,43.94]
[1748014995065,3.88334433,2575.1,2575.0,16.752]
[1748014995266,3.88334433,2575.1,2575.0,43.94]
[1748014997211,3.88334433,2575.1,2575.0,16.752]
[1748014997391,3.88334433,2575.1,2575.0,43.941]
[1748014997794,3.88334433,2575.1,2575.0,43.942]
[1748014997997,3.88334433,2575.1,2575.0,16.752]
[1748014998201,3.88334433,2575.1,2575.0,43.942]
[1748014999704,3.88334433,2575.1,2575.0,16.752]
[1748014999913,3.88334433,2575.1,2575.0,43.942]
[1748015000279,3.88334433,2575.1,2575.0,16.752]
[1748015000480,3.88334433,2575.1,2575.0,43.944]
[1748015001904,3.88334433,2575.1,2575.0,43.945]
[1748015002902,3.88334433,2575.1,2575.0,16.752]
[1748015003102,3.88334433,2575.1,2575.0,43.945]
[1748015004437,3.88327478,2575.2,2575.0,44.7733]
[1748015004932,3.88327348,2575.2,2575.0,45.34053168]
[1748015005433,3.88311009,2575.3,2575.0,45.34053168]
[1748015005630,3.88320677,2575.2,2575.0,45.34053168]
[1748015005833,3.88214941,2575.9,2575.4,3.8827801]
[1748015006054,0.759,2576.3,2575.6,0.8066]
[1748015006327,3.88243972,2575.7,2575.6,0.8066]
[1748015007933,3.88236783,2575.8,2575.6,12.4426]
[1748015008229,0.759,2576.5,2575.6,16.32508033]
[1748015008536,3.8817013,2576.2,2575.7,8.0]
[1748015008747,3.88209431,2576.0,2575.8,1.76791644]
[1748015009071,3.88224453,2575.9,2575.8,1.76791644]
[1748015009219,3.88224453,2575.9,2575.8,27.127]
[1748015009958,3.88138487,2576.4,2575.6,0.8066]
[1748015010283,3.88213828,2575.9,2575.8,27.126]
[1748015010558,3.88243972,2575.7,2575.6,0.8066]
[1748015010857,3.88243972,2575.7,2575.6,35.9326]
[1748015011059,3.88212301,2576.0,2575.7,8.0]
[1748015011353,3.88215844,2575.9,2575.7,8.0]
[1748015011920,0.759,2576.5,2575.7,8.0]
[1748015012120,3.88199668,2576.0,2575.7,8.0]
[1748015012620,3.88184379,2576.1,2575.8,0.7676]
[1748015012621,3.88188902,2576.1,2575.8,0.7676]
[1748015012830,2.67237116,2576.6,2575.8,0.7676]
[1748015013033,3.88198757,2576.0,2575.9,27.126]
[1748015013236,3.88213828,2575.9,2575.8,0.7676]
[1748015013445,3.88205316,2576.0,2575.9,15.491]
[1748015013650,3.88205316,2576.0,2575.9,45.50586]
[1748015013857,3.88205316,2576.0,2575.9,33.87086]
[1748015014184,3.88205316,2576.0,2575.9,18.37986]
[1748015014342,3.88205316,2576.0,2575.9,32.245]
[1748015014749,3.88205316,2576.0,2575.9,43.879]
[1748015014937,3.88205316,2576.0,2575.9,32.245]
[1748015015126,3.88205316,2576.0,2575.9,16.754]
[1748015015332,3.88191367,2576.1,2575.9,45.5534]
[1748015015557,3.88198757,2576.0,2575.9,18.4294]
[1748015015833,4.66548757,2576.0,2575.9,32.244]
[1748015018869,4.66548757,2576.0,2575.9,16.754]
[1748015019167,5.21548757,2576.0,2575.9,32.244]
[1748015021334,5.21548757,2576.0,2575.9,32.245]
[1748015022133,4.66548757,2576.0,2575.9,32.245]
[1748015026405,0.7501,2575.2,2574.9,0.55753778]
[1748015026683,7.51204764,2574.7,2574.6,0.46214853]
[1748015026864,28.22240986,2574.7,2574.6,0.46214853]
[1748015027179,35.96923662,2574.7,2574.6,0.46214853]
[1748015027343,38.39874075,2574.7,2574.6,0.46214853]
[1748015027739,5.24215482,2573.9,2573.8,15.491]
[1748015028546,3.88478575,2574.2,2573.3,16.755]
[1748015028547,3.88532254,2573.8,2573.4,8.0]
[1748015028758,3.88545673,2573.7,2573.5,27.126]
[1748015028968,5.24175086,2574.2,2573.3,16.755]
[1748015029168,5.24175086,2574.2,2573.5,0.8107]
[1748015029169,3.88525748,2573.9,2573.5,0.8107]
[1748015029369,3.88542096,2573.8,2573.5,0.8107]
[1748015029680,0.807,2574.5,2573.5,0.8107]
[1748015029882,3.88535887,2573.8,2573.5,0.8107]
[1748015030056,3.88546454,2573.7,2573.6,27.13]
[1748015030251,3.88537882,2573.8,2573.7,8.0]
[1748015031244,3.88523344,2573.9,2573.7,8.0]
[1748015031687,3.88505084,2574.0,2573.7,8.0]
[1748015031688,3.8850583,2574.0,2573.7,0.55773533]
[1748015031979,1.3072,2574.8,2573.9,8.0]
[1748015032184,3.88500388,2574.0,2573.9,8.0]
[1748015032889,3.88520158,2573.9,2573.7,0.55773533]
[1748015033185,3.88520158,2573.9,2573.8,35.134]
[1748015033974,3.8850013,2574.1,2573.9,8.0]
[1748015034697,3.88493055,2574.1,2573.9,8.0]
[1748015035000,3.88500388,2574.0,2573.9,8.0]
[1748015035687,3.88530577,2573.8,2573.7,0.55773533]
[1748015035853,3.88440821,2574.4,2573.8,8.0]
[1748015036181,3.88513575,2574.0,2573.8,8.0]
[1748015036367,3.88515482,2573.9,2573.8,8.0]
[1748015037146,19.64,2575.2,2573.8,8.0]
[1748015037147,0.7572,2574.8,2573.8,8.0]
[1748015037343,3.88486259,2574.1,2573.9,0.7856]
[1748015038495,0.7572,2574.8,2573.9,0.7856]
[1748015038783,3.88478701,2574.2,2573.9,0.7856]
[1748015039946,3.88485713,2574.1,2573.9,0.7856]
[1748015040251,3.88485713,2574.1,2574.0,0.87856]
[1748015040455,3.88458905,2574.3,2574.0,0.87856]
[1748015040668,3.88470204,2574.2,2574.0,0.87856]
[1748015040997,3.88410815,2574.6,2574.0,0.87856]
[1748015040998,3.88440385,2574.4,2574.0,0.87856]
[1748015041287,3.88455883,2574.3,2574.0,0.87856]
[1748015041499,3.88455114,2574.3,2574.0,0.87856]
[1748015041648,3.88470678,2574.2,2574.0,0.87856]
[1748015041985,3.88484302,2574.2,2574.0,0.87856]
[1748015042170,3.88500388,2574.0,2573.9,0.7856]
[1748015042362,3.88500388,2574.0,2573.9,36.0626]
[1748015043795,3.88500388,2574.0,2573.9,23.637]
[1748015044099,3.88500388,2574.0,2573.9,35.277]
[1748015044405,3.88530577,2573.8,2573.7,0.55773533]
[1748015044569,3.88530577,2573.8,2573.7,27.83473533]
[1748015044775,3.88530577,2573.8,2573.7,35.83473533]
[1748015044968,4.66235491,2573.8,2573.7,16.19473533]
[1748015045295,3.88530577,2573.8,2573.7,16.19473533]
[1748015046067,3.88530577,2573.8,2573.7,27.83673533]
[1748015047895,3.88530577,2573.8,2573.7,0.55773533]
[1748015048098,3.88530577,2573.8,2573.7,27.83873533]
[1748015052698,3.8852395,2573.9,2573.7,35.83873533]
[1748015052996,0.8002,2574.3,2573.8,8.0]
[1748015053193,3.88485811,2574.1,2573.8,8.7616]
[1748015053392,3.8849403,2574.1,2573.8,8.7616]
[1748015054087,3.8848538,2574.1,2573.8,8.7616]
[1748015054409,3.88508629,2574.0,2573.9,35.282]